[Event "LV Capablanca Memorial Premier 2022"]
[Site "La Habana"]
[Date "2022.04.21"]
[Round "3.1"]
[White "Bulmaga, Irina"]
[Black "Hernandez Moya, Yuleisy"]
[Result "1-0"]
[ECO "C18"]
[WhiteElo "2390"]
[BlackElo "2250"]
[Annotator "TA"]
[PlyCount "87"]
[EventDate "2022.04.20"]
[EventType "tourn"]
[EventCountry "CUB"]
[SourceTitle "playchess.com"]
[Source "ChessBase"]
[SourceQuality "1"]
[TimeControl "40/5400+30:1800+30"]

{[%evp 14,87,32,-12,37,11,17,20,22,18,133,14,193,-8,0,-19,-21,-26,-12,-27,-9,-14,-13,-35,-7,-25,-6,-15,-18,-29,-22,-75,-79,-157,-78,-75,-90,-78,-154,-154,0,0,11,12,467,0,0,0,0,0,0,0,0,0,0,0,0,0,0,-389,1217,1186,1234,1280,1261,1228,1131,1050,1398,1326,1232,920,723,717,685,550]} 1. e4 {[%emt 0:00:06]} e6 {[%emt 0:00:07]} 2. d4 {[%emt 0:00:05]} d5 {[%emt 0:00:05]} 3. Nc3 {[%emt 0:00:07]} Bb4 {[%emt 0:00:08]} 4. e5 {[%emt 0:00:06]} c5 {[%emt 0:00:07]} 5. a3 {[%emt 0:00:12]} Ba5 {[%emt 0:00:12]} 6. b4 {[%emt 0:01:47]} cxd4 {[%emt 0:00:23]} 7. Nb5 {[%emt 0:00:54]} Bc7 {[%emt 0:00:44]} 8. Nf3 {[%emt 0:04:30]} (8. Qxd4 Nc6 9. Nxc7+ Qxc7 $15) 8... Bd7 {[%emt 0:01:54] C18: French: 3 Nc3 Bb4: Main line: 7 h4 and 7 Qg4.} (8... Nc6 $11) 9. Nxc7+ {[%emt 0:08:51]} Qxc7 {[%emt 0:00:06]} 10. Bd3 {[%emt 0:01:38]} Ba4 {[%emt 0:08:34] The position is equal.} 11. O-O {[%emt 0:00:38][%mdl 1024] [#] White has compensation.} Nc6 $146 {[%emt 0:05:40]} (11... Ne7 $11 {keeps the balance.}) ({Predecessor:} 11... Ne7 12. Bb2 Nbc6 13. Re1 a6 14. Nxd4 Nxd4 15. Bxd4 Bb5 16. Bc5 b6 17. Bd6 Qd7 {0-1 (31) Ahn,M (2255)-Lafosse,J (2179) Belgium 2016}) 12. Re1 {[%emt 0:04:53]} (12. b5 $1 $16 {[%cal Rb5c6]} Nb8 13. Nxd4) 12... h6 $2 {[%emt 0:11:41]} (12... a6 $11) 13. h4 $2 {[%emt 0:05:29]} (13. b5 $18 Na5 14. Rb1 (14. Nxd4 Qc3 $18)) 13... a6 $1 $11 {[%emt 0:00:34]} 14. Qd2 {[%emt 0:02:51]} Nge7 {[%emt 0:05:37]} 15. Qf4 {[%emt 0:02:41]} Bb5 {[%emt 0:03:10]} (15... O-O {seems wilder.} 16. Qg4 Kh8 17. Qh5 Ng8) 16. h5 {[%emt 0:06:40]} Bxd3 {[%emt 0:07:45]} 17. cxd3 {[%emt 0:00:03]} O-O {[%emt 0:00:13]} 18. Qg4 {[%emt 0:11:18]} Kh7 {[%emt 0:11:21]} 19. Bb2 {[%emt 0:05:31]} Rfc8 {[%emt 0:07:36]} 20. Rac1 {[%emt 0:02:25]} Qb6 {[%emt 0:00:23]} 21. Qf4 {[%emt 0:06:58]} Kg8 {[%emt 0:02:05]} 22. g4 {[%emt 0:01:10]} (22. Bxd4 $11 {remains equal.} Qb5 23. Qd2) 22... a5 {[%emt 0:04:14]} 23. g5 {[%emt 0:03:54]} (23. Bxd4 $142 Qb5 24. Bc5) 23... Nf5 {[%emt 0:00:33]} (23... hxg5 $142 $1 24. Qxg5 (24. Nxg5 $2 Nf5 $19) 24... Nf5) 24. gxh6 $17 {[%emt 0:02:56]} Nxh6 {[%emt 0:04:44] Pair of Knights!} 25. Kh1 {[%emt 0:05:38]} Nf5 {[%emt 0:09:49]} (25... axb4 $2 26. Rg1 Nf5 27. h6 $19) ({Black should play} 25... Kh8 26. Rg1 Rg8 27. Bxd4 Qb5) 26. Rg1 {[%emt 0:00:44][%cal Oc1c6]} Kf8 $2 {[%emt 0:01:25]} (26... axb4 $17 27. h6 g6) 27. Rxc6 $1 $11 {[%emt 0:07:06]} Rxc6 {[%emt 0:05:28]} 28. Nxd4 {[%emt 0:00:25]} Rcc8 $2 {[%emt 0:02:26][%mdl 8192]} (28... axb4 $11 {and Black is okay.} 29. Nxf5 exf5) 29. Qg4 $2 {[%emt 0:03:03]} ({Only move:} 29. Nxf5 $18 {Strongly threatening Nd6.} exf5 30. e6 Qxe6 31. Bxg7+ Ke7 32. h6) 29... Ke7 {[%emt 0:01:39] ...Kd7 is the strong threat.} 30. Nxf5+ {[%emt 0:03:56]} exf5 {[%emt 0:00:06]} 31. Qh4+ {[%emt 0:04:40]} Kd7 $1 {[%emt 0:03:28]} (31... Kf8 $2 32. e6 d4 33. Bxd4 (33. e7+ Ke8 $16) 33... Qc6+ 34. Kh2 Qd6+ 35. Kh3 Qxe6 36. Bxg7+ Ke8 37. h6 $18) 32. Rxg7 {[%emt 0:00:08]} Qe6 {[%emt 0:00:07]} 33. h6 {[%emt 0:00:28] Threatens to win with h7. Chess con chili.} Rg8 $1 {[%emt 0:03:11]} 34. Qg5 {[%emt 0:02:49]} Rxg7 {[%emt 0:01:06]} 35. Qxg7 {[%emt 0:00:03][%mdl 4096] Endgame KQR-KQB} ({Reject} 35. hxg7 Qg6 36. e6+ Kxe6 37. Qe3+ Kd7 $17) 35... Ra6 {[%emt 0:00:47]} (35... Qg6 $2 36. Qxg6 fxg6 37. e6+ Kxe6 38. bxa5 $18) 36. Bc1 $2 {[%emt 0:00:26][%mdl 8192]} (36. Kg2 $11 {and White stays safe.} Qxh6 37. Qxf7+ Kd8 38. Qxb7 (38. Qxd5+ Ke8 $11)) 36... Qg6 $4 {[%emt 0:00:13][%mdl 8192]} (36... f4 $19 37. Bxf4 Qh3+ 38. Bh2 (38. Kg1 $2 Rg6+ 39. Qxg6 fxg6 $19) 38... Qf3+ 39. Qg2 Qd1+ 40. Qg1 Qxg1+ 41. Bxg1 Rxh6+ 42. Kg2 axb4 43. axb4 Rg6+ 44. Kf1 Rb6) 37. Qxg6 $18 {[%emt 0:00:23] Active counter play! White is clearly winning.} fxg6 {[%emt 0:00:20] KR-KB} 38. h7 {[%emt 0:00:16]} Ra8 {[%emt 0:00:06] [#]} 39. e6+ $1 {[%emt 0:00:08]} Kxe6 {[%emt 0:01:23] [#]} 40. Bb2 $1 {[%emt 0:00:00]} axb4 {[%emt 0:00:00]} 41. axb4 {[%emt 0:03:15]} Kd6 {[%emt 0:03:18]} 42. h8=Q {[%emt 0:00:00]} Rxh8+ {[%emt 0:00:05]} 43. Bxh8 {[%emt 0:00:00] aiming for Kg2.} Kc6 {[%emt 0:00:06]} 44. Kg2 {[%emt 0:00:29] Weighted Error Value: White=0.57/Black=0.43} 1-0

[Event "LV Capablanca Memorial Premier 2022"]
[Site "La Habana"]
[Date "2022.04.21"]
[Round "3.2"]
[White "Cori Tello, Deysi"]
[Black "Hernandez Gil, Ineymig"]
[Result "1/2-1/2"]
[ECO "D10"]
[WhiteElo "2391"]
[BlackElo "2348"]
[Annotator "TA"]
[PlyCount "97"]
[EventDate "2022.04.20"]
[EventType "tourn"]
[EventCountry "CUB"]
[SourceTitle "playchess.com"]
[Source "ChessBase"]
[SourceQuality "1"]
[TimeControl "40/5400+30:1800+30"]

{[%evp 12,97,-58,-54,-58,-62,-54,-73,-47,-66,-43,-47,-49,-65,-37,-35,-20,-32,-16,-10,-8,-13,-6,-10,0,-10,-12,-17,-11,-14,-7,-11,-9,-52,0,-17,0,-29,63,-22,-24,-23,-27,-22,-22,-19,-22,-27,-20,-23,-19,-18,-18,-28,-23,-10,-18,-16,-9,-20,-15,-24,-29,-72,0,0,0,0,0,0,0,0,0,0,0,0,0,0,0,0,0,0,0,0,0,0,0,0]} 1. c4 {[%emt 0:07:36]} c6 {[%emt 0:00:16]} 2. Nc3 {[%emt 0:00:17]} d5 {[%emt 0:00:19]} 3. d4 {[%emt 0:00:02]} dxc4 {[%emt 0:00:23]} 4. a4 {[%emt 0:00:23]} e5 {[%emt 0:00:16]} 5. e3 {[%emt 0:08:48]} exd4 {[%emt 0:00:17]} 6. exd4 {[%emt 0:00:04]} Be6 {[%emt 0:00:14]} 7. Nf3 {[%emt 0:00:28]} Bb4 {[%emt 0:00:15] D10: Slav Defence: 3 cxd5 (without early Nf3) and 3 Nc3.} 8. Be2 {[%emt 0:02:20]} Nd7 {[%emt 0:02:53]} 9. O-O {[%emt 0:00:20]} Ngf6 {[%emt 0:02:34] Against d5. Black is better.} 10. Qc2 {[%emt 0:03:54]} O-O {[%emt 0:06:26]} 11. Na2 {[%emt 0:03:19][%csl LRb4,LRc4]} Bd6 {[%emt 0:02:53]} 12. Bxc4 {[%emt 0:00:06]} Bxc4 {[%emt 0:00:45]} (12... Bg4 $5 {[%cal Rg4f3]} 13. Qd3 Nb6 $17) 13. Qxc4 {[%emt 0:00:02]} Nb6 {[%emt 0:08:08]} 14. Qb3 {[%emt 0:03:22] [#]} a5 $146 {[%emt 0:07:54]} ({Predecessor:} 14... Qc7 15. Nc3 h6 16. g3 Nbd5 17. Re1 Rfe8 18. Bd2 a5 19. Rac1 Nb4 20. Nb5 Qd7 21. Nxd6 Qxd6 {½-½ (73) Luna,M (2070)-Alonso,R (2200) Moreno 1995}) 15. Bg5 {[%emt 0:02:05]} Bc7 {[%emt 0:03:16]} 16. Nc3 {[%emt 0:03:10]} Qd6 {[%emt 0:05:09]} 17. Rfe1 {[%emt 0:05:21]} Nbd5 {[%emt 0:12:32]} 18. Rad1 {[%emt 0:15:03][%cal Ba1d1,Bd1d3,Bd3g3][%mdl 32]} ({But not} 18. Qxb7 $2 Rfb8 19. Qxa8 Rxa8 $19) 18... Qb4 {[%emt 0:10:51]} 19. Qc2 {[%emt 0:00:27]} Rac8 {[%emt 0:05:05]} 20. Ne5 {[%emt 0:02:29]} h6 {[%emt 0:02:48]} 21. Bc1 {[%emt 0:03:20]} Rcd8 {[%emt 0:03:13]} 22. Rd3 {[%emt 0:05:42]} Bb6 {[%emt 0:08:46]} ({Better is} 22... Rfe8 $15) 23. Qd1 {[%emt 0:19:47]} Qd6 {[%emt 0:06:40]} 24. Rg3 {[%emt 0:02:32] Strongly threatening Bxh6.} Kh8 {[%emt 0:01:57]} (24... Ne7 $1 $11) 25. h4 {[%emt 0:09:54]} (25. Rh3 $1 $14 Nh7 26. Rh4) 25... Nb4 $11 {[%emt 0:04:05]} 26. Bf4 $1 {[%emt 0:00:12][%cal Oe5f7]} Qxd4 {[%emt 0:01:54]} 27. Qf3 {[%emt 0:00:01] Active counter play!} Nbd5 {[%emt 0:03:12]} 28. Nxd5 {[%emt 0:02:33]} Rxd5 {[%emt 0:00:26]} 29. Bxh6 $1 {[%emt 0:00:46] [#]} Qxf2+ $1 {[%emt 0:00:26]} 30. Qxf2 {Chess con chili.} Bxf2+ {[%emt 0:00:02]} 31. Kxf2 {[%emt 0:00:36]} gxh6 {[%emt 0:00:08]} 32. Kg1 {[%emt 0:00:34]} Nd7 {[%emt 0:01:27]} 33. Nc4 {[%emt 0:00:56]} Rg8 {[%emt 0:00:36]} 34. Rf3 {[%emt 0:00:16]} Rg7 {[%emt 0:00:42]} 35. Re8+ {[%emt 0:00:41]} Kh7 {[%emt 0:00:01]} 36. Ne3 {[%emt 0:00:17]} Rd2 {[%emt 0:00:41]} 37. g3 {[%emt 0:00:26] [#]} Rxb2 {[%emt 0:00:55]} (37... f6 $1 $17 {Threatens to win with ...Ne5.} 38. Nf5 Rf7) 38. Nf5 $1 {[%emt 0:00:34] The position is equal.} Rg4 {[%emt 0:00:33]} 39. Re7 {[%emt 0:00:06][%csl LRd7,LRf7]} Nc5 {[%emt 0:00:29]} 40. Rxf7+ {[%emt 0:00:00]} Kh8 {[%emt 0:00:00]} 41. Rf6 {[%emt 0:23:13]} Re4 {[%emt 0:13:20]} (41... Nxa4 {gets mated.} 42. Re3 Rb1+ 43. Kg2 Rb2+ 44. Kh3) (41... Rxa4 42. Rxh6+ Kg8 43. Ne7+ Kg7 44. Rg6+ Kh8 45. Rf8+ Kh7 46. Rf7+ Kh8 47. Rh6#) 42. Rxh6+ {[%emt 0:03:19]} Kg8 {[%emt 0:00:08]} 43. Ne3 {[%emt 0:01:06]} Rb3 {[%emt 0:05:45]} 44. Rg6+ {[%emt 0:02:20]} Kh7 {[%emt 0:01:29]} 45. Rff6 {[%emt 0:00:35] White wants to mate with Nf5.} Rexe3 {[%emt 0:04:07]} (45... Rbxe3 $5 46. Rh6+ Kg7 47. Rhg6+ Kh8 48. Rh6+ Kg8 49. Rhg6+ Kh8 50. Rh6+ Kg8 51. Rhg6+ Kh8 $11) 46. Rh6+ {[%emt 0:00:28]} Kg7 {[%emt 0:00:33]} 47. Rhg6+ {[%emt 0:00:06]} Kh7 {[%emt 0:00:20]} 48. Rh6+ {[%emt 0:00:30]} Kg7 {[%emt 0:00:15]} 49. Rhg6+ {[%emt 0:00:04] Weighted Error Value: White=0.09 (flawless) /Black=0.10 (very precise)} 1/2-1/2

[Event "LV Capablanca Memorial Premier 2022"]
[Site "La Habana"]
[Date "2022.04.21"]
[Round "3.3"]
[White "Miranda Llanes, Yerisbel"]
[Black "Forgas Moreno, Yaniela"]
[Result "0-1"]
[ECO "A42"]
[WhiteElo "2261"]
[BlackElo "2303"]
[Annotator "TA"]
[PlyCount "78"]
[EventDate "2022.04.20"]
[EventType "tourn"]
[EventCountry "CUB"]
[SourceTitle "playchess.com"]
[Source "ChessBase"]
[SourceQuality "1"]
[TimeControl "40/5400+30:1800+30"]

{[%evp 11,78,38,40,41,53,52,46,58,54,46,69,47,47,60,47,18,55,58,51,29,62,80,71,81,75,50,56,50,29,0,-2,-31,0,-41,-49,-54,-25,-25,-30,-26,-30,-65,-81,-63,-58,-78,0,0,0,-37,-33,-213,-213,-368,-376,-796,-769,-781,-764,-781,-753,-1004,-1004,-1450,-1385,-29997,-29998,-29998,-29999]} 1. d4 {[%emt 0:00:30]} Nf6 {[%emt 0:00:30]} 2. c4 {[%emt 0:00:30]} d6 {[%emt 0:00:30]} 3. Nc3 {[%emt 0:00:30]} Nbd7 {[%emt 0:00:30]} 4. e4 {[%emt 0:00:30]} e5 {[%emt 0:00:30]} 5. d5 {[%emt 0:00:30]} g6 {[%emt 0:00:30]} 6. Be2 {[%emt 0:04:07]} Bg7 {[%emt 0:07:21]} 7. h4 {[%emt 0:00:30] A42: Modern Defence: Averbakh Variation.} h5 {[%emt 0:00:30] [#]} 8. Bg5 $146 {[%emt 0:00:30]} ({Predecessor:} 8. Nf3 Nc5 9. Ng5 a5 10. Be3 O-O 11. f3 c6 12. O-O a4 13. Bxc5 dxc5 14. dxc6 bxc6 {0-1 (22) Williams,S (2464)-Sunilduth Lyna,N (2658) Chess.com INT 2022}) 8... Bh6 {[%emt 0:00:30]} 9. Bxh6 {[%emt 0:00:30] White is slightly better.} Rxh6 {[%emt 0:00:30]} 10. Nf3 {[%emt 0:10:24]} Nc5 {[%emt 0:23:02]} 11. Ng5 (11. Qd2 $5 {[%cal Rd2h6]} Rh8 12. Ng5 $14) 11... a5 {[%emt 0:00:17]} 12. Qd2 {[%cal Og5f7]} Rh8 {[%emt 0:09:28]} 13. O-O-O {[%emt 0:08:44]} Ng8 {[%emt 0:04:34]} 14. f4 {[%emt 0:01:41]} f6 {[%emt 0:00:27]} 15. Nf3 {[%emt 0:02:40]} (15. fxe5 {seems wilder.} fxg5 16. exd6 cxd6 17. e5) 15... Bg4 {[%emt 0:02:35]} 16. fxe5 {[%emt 0:03:32]} dxe5 {[%emt 0:04:43]} 17. Qe3 {[%emt 0:05:15]} b6 {[%emt 0:02:23]} 18. Nb5 {[%emt 0:00:42] [#] Strongly threatening d6.} Kf8 {[%emt 0:05:49]} 19. Rdf1 {[%emt 0:02:44] Black must now prevent Nxe5.} Kg7 {[%emt 0:04:44]} 20. Rf2 {[%emt 0:01:51]} Nh6 {[%emt 0:04:09]} 21. Rhf1 {[%emt 0:04:11]} Qe7 {[%emt 0:00:00]} 22. Nc3 {[%emt 0:17:40]} (22. Nh2 $5 {[%cal Rf2f6]}) 22... Rhf8 {[%emt 0:00:00]} 23. Bd1 {[%emt 0:03:45]} Rad8 {[%emt 0:05:50]} 24. Bc2 {[%emt 0:00:45]} Nb7 {[%emt 0:03:24]} 25. Nh2 {[%emt 0:04:02]} Qc5 {[%emt 0:02:50]} 26. Qd3 {[%emt 0:01:36]} Nd6 {[%emt 0:00:55]} 27. b3 {[%emt 0:01:42]} Bd7 {[%emt 0:00:48][%cal Oa5a4] Threatens to win with ...a4!} 28. Qg3 {[%emt 0:00:30]} Ng4 {[%emt 0:00:30] Active counter play!} (28... Ng8 $17 29. a4 Qb4) 29. Nxg4 $11 {[%emt 0:00:30]} Bxg4 {[%emt 0:00:30]} ({Don't play} 29... hxg4 30. h5 $16) 30. Qd3 {[%emt 0:00:30]} Rde8 {[%emt 0:00:30]} 31. Rd2 $2 {[%emt 0:00:30] [#] White does not recover from this.} ({Better is} 31. Qg3 $15) 31... f5 $1 $19 {[%emt 0:00:30]} 32. Kb2 $2 {[%emt 0:00:30]} (32. Re1 {is a better defense.}) 32... Nxe4 {[%emt 0:00:30]} 33. Nxe4 $2 {[%emt 0:00:30]} (33. Re1 Nxd2 34. Qxd2) 33... fxe4 {[%emt 0:00:30]} 34. Qxe4 {[%emt 0:00:30]} Rxf1 {[%emt 0:12:43]} 35. Qxg6+ {[%emt 0:20:09]} Kf8 {[%emt 0:00:06] ...Qe3 is the strong threat.} 36. d6 {[%emt 0:01:25]} Qe3 {[%emt 0:02:10]} 37. d7 {[%emt 0:03:36]} Rd8 38. Rd3 {[%emt 0:00:11]} Qc1+ 39. Kc3 {[%emt 0:00:53]} Qa1+ {[%emt 0:00:39] Weighted Error Value: White=0.75/Black=0.08 (flawless)} 0-1

[Event "LV Capablanca Memorial Premier 2022"]
[Site "La Habana"]
[Date "2022.04.21"]
[Round "3.4"]
[White "Lujan, Carolina"]
[Black "Kiolbasa, Oliwia"]
[Result "1/2-1/2"]
[ECO "C55"]
[WhiteElo "2334"]
[BlackElo "2388"]
[Annotator "TA"]
[PlyCount "50"]
[EventDate "2022.04.20"]
[EventType "tourn"]
[EventCountry "CUB"]
[SourceTitle "playchess.com"]
[Source "ChessBase"]
[SourceQuality "1"]
[TimeControl "40/5400+30:1800+30"]

{[%evp 9,50,0,25,17,26,18,20,20,26,25,20,-4,7,-54,40,39,35,32,27,29,29,30,26,28,37,36,26,20,17,20,18,6,42,40,35,16,13,0,34,0,12,0,36]} 1. e4 {[%emt 0:00:08]} e5 {[%emt 0:00:09]} 2. Nf3 {[%emt 0:00:07]} Nc6 {[%emt 0:00:07]} 3. Bc4 {[%emt 0:00:15]} Nf6 {[%emt 0:00:21]} 4. d3 {[%emt 0:00:06]} h6 {[%emt 0:00:28]} 5. Nc3 {[%emt 0:11:50]} d6 {[%emt 0:01:07]} 6. a3 {[%emt 0:00:19] C55: Two Knights: 4 d3, 4 d4 exd4 5 e5 and Max Lange Attack.} g6 {[%emt 0:13:37]} 7. h3 {[%emt 0:02:57]} Bg7 {[%emt 0:00:37]} 8. Be3 {[%emt 0:02:21]} O-O {[%emt 0:24:58]} 9. Qd2 {[%emt 0:03:28]} Kh7 {[%emt 0:00:00]} 10. g4 {[%emt 0:20:17]} Ng8 {[%emt 0:00:00]} 11. d4 {[%emt 0:15:49]} (11. g5 $11) 11... exd4 {[%emt 0:10:42]} (11... Qf6 $15 12. Qe2 Nxd4 13. Bxd4 exd4) 12. Nxd4 $14 {[%emt 0:00:38] [#]} Nxd4 $146 {[%emt 0:00:13]} ({Predecessor:} 12... Nge7 13. O-O-O a6 14. f4 Rb8 15. Nd5 b5 16. Be2 Bb7 17. Bf3 Nxd5 18. exd5 Ne7 {½-½ (50) Ivekovic,B (2109)-Zecevic,D (2213) Zagreb 2010}) 13. Bxd4 {[%emt 0:00:05]} Bxd4 {[%emt 0:00:26]} 14. Qxd4 {[%emt 0:00:04]} Qg5 $1 {[%emt 0:00:18]} 15. Be2 {[%emt 0:11:01]} Nf6 {[%emt 0:07:18][%cal Bg8f6,Bf6e8,Be8d6][%mdl 32]} 16. h4 {[%emt 0:01:32]} Qe5 {[%emt 0:00:26]} 17. Qxe5 {[%emt 0:02:33]} dxe5 {[%emt 0:00:02]} 18. g5 {[%emt 0:00:12]} Ne8 {[%emt 0:00:28]} 19. O-O-O {[%emt 0:09:46] Black should prevent Rd5.} Be6 {[%emt 0:02:38] Inhibits Rd5.} 20. Nd5 {[%emt 0:02:25]} h5 {[%emt 0:12:55]} 21. f3 {[%emt 0:06:23]} Rd8 {[%emt 0:02:47]} 22. Ne3 {[%emt 0:00:34]} Nd6 {[%emt 0:02:38]} 23. Nd5 {[%emt 0:00:50]} Ne8 {[%emt 0:00:21]} 24. Ne3 {[%emt 0:01:37]} Nd6 {[%emt 0:09:48]} 25. Nd5 {[%emt 0:03:27]} Ne8 {[%emt 0:00:00] Weighted Error Value: White=0.15 (very precise) /Black=0.10 (very precise)} 1/2-1/2

[Event "LV Capablanca Memorial Premier 2022"]
[Site "La Habana"]
[Date "2022.04.21"]
[Round "3.5"]
[White "Arribas Robaina, Maritza"]
[Black "Ordaz Valdes, Lisandra Teresa"]
[Result "0-1"]
[ECO "C78"]
[WhiteElo "2204"]
[BlackElo "2371"]
[Annotator "TA"]
[PlyCount "94"]
[EventDate "2022.04.20"]
[EventType "tourn"]
[EventCountry "CUB"]
[SourceTitle "playchess.com"]
[Source "ChessBase"]
[SourceQuality "1"]
[TimeControl "40/5400+30:1800+30"]

{[%evp 17,94,0,0,0,0,0,6,-22,-14,-27,-19,-23,-21,-20,-25,-21,-24,-48,-54,-81,-74,-179,-159,-200,-199,-199,-175,-169,-135,-138,-138,-137,-129,-130,-123,-136,-145,-153,-131,-165,-141,-184,-133,-133,-59,-62,-54,-72,-37,-64,-64,-64,-64,-64,-64,-64,-67,-109,-101,-60,-60,-60,-60,-130,-161,-122,-114,-276,-210,-280,-287,-272,-251,-253,-262,-385,-364,-426,-387]} 1. e4 {[%emt 0:00:07]} e5 {[%emt 0:00:07]} 2. Nf3 {[%emt 0:00:07]} Nc6 {[%emt 0:00:06]} 3. Bb5 {[%emt 0:00:13]} a6 {[%emt 0:00:07]} 4. Ba4 {[%emt 0:00:18]} Nf6 {[%emt 0:00:08]} 5. O-O {[%emt 0:00:35]} b5 {[%emt 0:00:11]} 6. Bb3 {[%emt 0:00:07]} Bc5 {[%emt 0:00:09]} 7. c3 {[%emt 0:05:09]} d6 {[%emt 0:00:38]} 8. d4 {[%emt 0:00:47]} Bb6 {[%emt 0:00:15]} 9. dxe5 {[%emt 0:01:22]} Nxe5 {[%emt 0:02:11]} 10. Nxe5 {[%emt 0:00:46] C78: Ruy Lopez: Archangelsk and Möller Defences.} dxe5 {[%emt 0:00:07]} 11. Qxd8+ {[%emt 0:02:29]} Kxd8 {[%emt 0:00:10]} 12. Bg5 {[%emt 0:11:32] The position is equal. was the old line (12.Bxf7).} Ke7 {[%emt 0:03:31]} 13. Nd2 {[%emt 0:01:17]} h6 {[%emt 0:09:26]} 14. Bh4 {[%emt 0:01:01]} g5 {[%emt 0:16:59]} (14... Bg4 {feels hotter.} 15. Nf3 Bxf3 16. gxf3 c6) 15. Bg3 {[%emt 0:00:55]} Nd7 {[%emt 0:00:26][%cal Bf6d7,Bd7c5,Bc5d3][%mdl 32]} 16. Bd5 {[%emt 0:01:57] Against Bb7} Rb8 {[%emt 0:02:57] [#]} 17. Kh1 $146 {[%emt 0:01:06]} ({Predecessor:} 17. Rfd1 Bb7 18. Bxb7 Rxb7 19. Nf1 f6 20. b4 Rd8 21. h3 Rbb8 22. Bh2 h5 23. Ng3 {½-½ (89) Vetoshko,V (2079)-Ledakov,A (2059) Lubin 2009}) 17... Rd8 {[%emt 0:02:53][%cal Of7f5]} 18. Rad1 {[%emt 0:06:17]} f6 {[%emt 0:01:24]} 19. Rfe1 {[%emt 0:09:28]} (19. Nb3 $17) 19... Nc5 $19 {[%emt 0:06:10]} 20. Nf1 {[%emt 0:03:54] [#]} c6 $1 {[%emt 0:16:53]} 21. Bb3 {[%emt 0:09:47]} Nd3 {[%emt 0:06:03]} 22. Re2 {[%emt 0:00:28]} Be6 {[%emt 0:00:24] And now ...Bxb3 would win.} 23. Rb1 {[%emt 0:01:51]} Bxb3 {[%emt 0:00:32]} 24. axb3 {[%emt 0:00:07]} a5 {[%emt 0:01:17] Prevents b4.} 25. f3 {[%emt 0:01:21]} Rd7 {[%emt 0:02:33]} 26. Be1 {[%emt 0:06:10]} Rbd8 {[%emt 0:06:09]} 27. g3 {[%emt 0:00:46]} Nxe1 {[%emt 0:05:59] 0x0.001e7f237ef7dp-1022s more active pieces. The white rooks are badly placed.} 28. Rbxe1 {[%emt 0:03:19]} Rd1 {[%emt 0:00:22]} 29. Kg2 {[%emt 0:00:28]} R8d3 {[%emt 0:04:18]} ({Better is} 29... h5 $19 30. Rxd1 Rxd1) 30. g4 $17 {[%emt 0:01:50]} Ke6 {[%emt 0:03:41]} ({Black should try} 30... Rxe1 $17 31. Rxe1 Ke8) 31. Rxd1 $15 {[%emt 0:04:13]} Rxd1 {[%emt 0:00:05][%mdl 4096] Endgame KRB-KRN} 32. Ng3 $1 {[%emt 0:01:15]} b4 {[%emt 0:03:19]} 33. cxb4 {[%emt 0:00:34]} axb4 {[%emt 0:00:05] Hoping for ...Rd3.} 34. Rc2 {[%emt 0:01:32]} Kd7 {[%emt 0:00:37] ...Rd3 is the strong threat.} 35. Nh5 $1 {[%emt 0:01:56]} Bd8 {[%emt 0:01:00]} 36. Ng3 $1 {[%emt 0:03:16]} Rd3 {[%emt 0:03:30] Threatens to win with ...Bb6.} 37. Ne2 {[%emt 0:00:13]} Bb6 {[%emt 0:02:54] Strongly threatening ...Be3.} ({But not} 37... Rxb3 $6 38. Rd2+ Ke7 39. Nc1 $11) 38. Nc1 {[%emt 0:00:21]} Rd1 {[%emt 0:00:40]} 39. Na2 $1 {[%emt 0:00:33]} Rd4 {[%emt 0:00:42]} 40. Kf1 {[%emt 0:00:00]} (40. h3 $15) 40... Rd3 $17 {[%emt 0:00:00][%csl LRb3,LRf3]} 41. Nxb4 {[%emt 0:03:49]} Rxb3 {[%emt 0:05:00]} 42. Rd2+ $2 {[%emt 0:01:59] Now White is beyond hope.} (42. Nxc6 $17 {was worth a try.} Rxf3+ 43. Kg2) 42... Bd4 {[%emt 0:00:43]} 43. Nd3 {[%emt 0:00:05] aiming for Nc5+.} Kd6 {[%emt 0:00:39] Against Nc5} 44. Ke2 {[%emt 0:00:13] [#]} c5 $1 {[%emt 0:01:00]} 45. Rc2 {[%emt 0:01:45]} Kc6 {[%emt 0:01:45]} 46. Kd2 {[%emt 0:12:18]} (46. Nc1 $142 Re3+ 47. Kd1) 46... Kb5 $19 {[%emt 0:02:38]} 47. Ne1 {[%emt 0:04:04]} Bxb2 {[%emt 0:02:27] Weighted Error Value: White=0.24 (precise) /Black=0.09 (flawless)} 0-1